fUSD/lending_fUSD_20250505
["ID","MTS","AMOUNT","RATE_DAILY","PERIOD"]
[359960905,1746450631981,-250.0,0.00019551,2]
[359960907,1746450631993,-200.0,0.000196,2]
[359960909,1746450632005,-250.0,0.00019641,2]
[359960912,1746450632017,-207.4,0.00019753,2]
[359960914,1746450632028,-606.83215093,0.00019764,2]
[359960917,1746450632044,-180.16784907,0.00019764,2]
[359960918,1746450632056,-1200.0,0.00019764,2]
[359960920,1746450632068,-300.0,0.00019764,2]
[359960922,1746450632081,-129.03519327,0.00019765,2]
[359960925,1746450632095,-342.63599996,0.00019765,2]
[359960927,1746450632110,-1487.34210677,0.00019765,2]
[359960930,1746450632122,-8335.01089323,0.00019765,2]
[359960936,1746450632175,-2016.30819884,0.00019765,2]
[359960938,1746450632189,-602.25188888,0.00019765,2]
[359960941,1746450632203,-669.92949261,0.00019765,2]
[359960944,1746450632226,-944.81,0.00019765,2]
[359960947,1746450632338,-615.38791335,0.00019765,2]
[359960948,1746450632350,-3693.33780679,0.00019765,2]
[359960958,1746450637564,-940.27,0.00019765,2]
[359960959,1746450637620,-2112.07874154,0.00019765,2]
[359960960,1746450637631,-3237.458895,0.00019765,2]
[359960961,1746450637642,-1892.83149864,0.00019765,2]
[359960962,1746450637681,-1008.39561349,0.00019765,2]
[359960963,1746450637737,-13971.84136645,0.00019765,2]
[359960964,1746450637746,-1000.0,0.00019777,2]
[359960965,1746450637756,-976.0,0.00019782,2]
[359960966,1746450637765,-812.0802,0.00019799,2]
[359960967,1746450637775,-168.12360691,0.00019799,2]
[359960968,1746450637784,-150.5329355,0.00019799,2]
[359960969,1746450637793,-298.36414734,0.00019799,2]
[359960970,1746450637802,-600.0,0.000198,2]
[359960971,1746450637811,-298.36414732,0.0001981,2]
[359960972,1746450637820,-168.12360687,0.00019813,2]
[359960973,1746450637829,-298.36414732,0.00019821,2]
[359960974,1746450637838,-168.12360687,0.00019828,2]
[359960975,1746450637848,-298.36414732,0.00019832,2]
[359960976,1746450637857,-2000.0,0.00019839,2]
[359960977,1746450637866,-168.12360687,0.00019842,2]
[359960978,1746450637876,-298.36414732,0.00019843,2]
[359960979,1746450637885,-298.36414732,0.00019853,2]
[359960980,1746450637894,-168.12360687,0.00019857,2]
[359960981,1746450637903,-298.36414732,0.00019864,2]
[359960982,1746450637912,-162.42846686,0.00019869,2]
[359960983,1746450637921,-168.12360687,0.00019871,2]
[359960984,1746450637931,-258.61412107,0.00019873,2]
[359960985,1746450637941,-301.51768,0.00019873,2]
[359960986,1746450637950,-500.0,0.00019873,2]
[359960987,1746450637959,-500.0,0.00019873,2]
[359960988,1746450637968,-298.36414732,0.00019875,2]
[359960989,1746450637978,-89.38378815,0.00019884,2]
[359960990,1746450637990,-497.18022327,0.00019884,2]
[359960991,1746450637999,-299.82471199,0.00019884,2]
[359960992,1746450638009,-168.12360687,0.00019886,2]
[359960994,1746450638018,-298.36414732,0.00019886,2]
[359960996,1746450638028,-2547.77,0.00019889,2]
[359960997,1746450638037,-586.56401142,0.00019892,2]
[359960998,1746450638046,-299.82471199,0.00019892,2]
[359960999,1746450638056,-298.36414732,0.00019897,2]
[359961000,1746450638066,-500.0,0.00019897,2]
[359961001,1746450638075,-368.4687035,0.00019897,2]
[359961002,1746450638085,-500.0,0.00019897,2]
[359961003,1746450638094,-500.0,0.00019897,2]
[359961004,1746450638104,-500.0,0.00019897,2]
[359961005,1746450638113,-110.85536092,0.00019897,2]
[359961006,1746450638124,-389.14463908,0.00019897,2]
[359961007,1746450638134,-500.0,0.00019897,2]
[359961008,1746450638144,-500.0,0.00019897,2]
[359961009,1746450638153,-450.0,0.00019897,2]
[359961010,1746450638162,-450.0,0.00019897,2]
[359961011,1746450638172,-450.0,0.00019897,2]
[359961012,1746450638182,-450.0,0.00019898,2]
[359961013,1746450638191,-450.0,0.00019898,2]
[359961014,1746450638200,-450.0,0.00019898,2]
[359961015,1746450638209,-450.0,0.00019898,2]
[359961016,1746450638218,-450.0,0.00019898,2]
[359961017,1746450638227,-483.03789791,0.00019898,2]
[359961018,1746450638237,-450.0,0.00019898,2]
[359961019,1746450638246,-210.06346301,0.00019898,2]
[359961040,1746450639748,-239.93653699,0.00019898,2]
[359961041,1746450639758,-450.0,0.00019898,2]
[359961042,1746450639768,-450.0,0.00019898,2]
[359961043,1746450639777,-483.43804369,0.00019898,2]
[359961044,1746450639786,-250.0,0.00019898,2]
[359961045,1746450639796,-491.98027551,0.00019898,2]
[359961046,1746450639805,-450.0,0.00019898,2]
[359961047,1746450639815,-450.0,0.00019898,2]
[359961048,1746450639825,-450.0,0.00019898,2]
[359961049,1746450639834,-450.0,0.00019898,2]
[359961050,1746450639843,-450.0,0.00019898,2]
[359961051,1746450639852,-466.33911396,0.00019898,2]
[359961052,1746450639863,-472.29060828,0.00019898,2]
[359961053,1746450639872,-450.0,0.00019898,2]
[359961054,1746450639881,-450.0,0.00019898,2]
[359961055,1746450639890,-467.45185861,0.00019898,2]
[359961056,1746450639899,-450.0,0.00019898,2]
[359961057,1746450639909,-450.0,0.00019898,2]
[359961058,1746450639918,-450.0,0.00019898,2]
[359961059,1746450639927,-450.0,0.00019898,2]
[359961060,1746450639939,-503.68932008,0.00019898,2]
[359961061,1746450639948,-450.0,0.00019898,2]
[359961062,1746450639957,-540.50678775,0.00019898,2]
[359961063,1746450639966,-450.0,0.00019898,2]
[359961064,1746450639975,-450.0,0.00019898,2]
[359961065,1746450639984,-450.0,0.00019898,2]
[359961066,1746450639994,-450.0,0.00019898,2]
[359961067,1746450640003,-450.0,0.00019898,2]
[359961068,1746450640012,-450.0,0.00019898,2]
[359961069,1746450640022,-567.84884716,0.00019898,2]
[359961070,1746450640031,-450.0,0.00019898,2]
[359961071,1746450640040,-450.0,0.00019898,2]
[359961072,1746450640050,-450.0,0.00019898,2]
[359961073,1746450640059,-450.0,0.00019898,2]
[359961074,1746450640069,-450.0,0.00019898,2]
[359961075,1746450640078,-499.49418601,0.00019898,2]
[359961076,1746450640087,-450.0,0.00019898,2]
[359961077,1746450640096,-477.59051706,0.00019898,2]
[359961078,1746450640105,-450.0,0.00019898,2]
[359961079,1746450640114,-450.0,0.00019898,2]
[359961080,1746450640123,-366.03681086,0.00019898,2]
[359961081,1746450640133,-450.0,0.00019898,2]
[359961082,1746450640142,-450.0,0.00019898,2]
[359961083,1746450640152,-450.0,0.00019898,2]
[359961084,1746450640161,-450.0,0.00019898,2]
[359961085,1746450640170,-506.05877206,0.00019898,2]
[359961086,1746450640182,-574.79033169,0.00019898,2]
[359961087,1746450640192,-450.0,0.00019898,2]
[359961088,1746450640202,-450.0,0.00019898,2]
[359961089,1746450640211,-450.0,0.00019898,2]
[359961090,1746450640220,-450.0,0.00019898,2]
[359961091,1746450640229,-450.0,0.00019898,2]
[359961092,1746450640238,-450.0,0.00019898,2]
[359961093,1746450640248,-450.0,0.00019898,2]
[359961094,1746450640257,-344.07421789,0.00019898,2]
[359961095,1746450640267,-450.0,0.00019898,2]
[359961096,1746450640275,-450.0,0.00019898,2]
[359961097,1746450640285,-450.0,0.00019898,2]
[359961099,1746450640295,-450.0,0.00019898,2]
[359961101,1746450640304,-450.0,0.00019898,2]
[359961103,1746450640313,-240.39197207,0.00019898,2]
[359961104,1746450640322,-450.0,0.00019898,2]
[359961105,1746450640331,-450.0,0.00019898,2]
[359961106,1746450640340,-450.0,0.00019898,2]
[359961107,1746450640349,-450.0,0.00019898,2]
[359961108,1746450640358,-490.0,0.00019898,2]
[359961109,1746450640367,-450.0,0.00019898,2]
[359961110,1746450640376,-450.0,0.00019898,2]
[359961111,1746450640385,-450.0,0.00019898,2]
[359961112,1746450640394,-425.10136853,0.00019898,2]
[359961113,1746450640403,-485.71837721,0.00019898,2]
[359961114,1746450640412,-468.47803953,0.00019898,2]
[359961115,1746450640423,-506.1079232,0.00019898,2]
[359961116,1746450640435,-450.0,0.00019898,2]
[359961117,1746450640445,-396.70518972,0.00019898,2]
[359961118,1746450640454,-450.0,0.00019898,2]
[359961119,1746450640463,-450.0,0.00019898,2]
[359961120,1746450640473,-560.43503776,0.00019898,2]
[359961121,1746450640483,-450.0,0.00019898,2]
[359961122,1746450640492,-213.32317056,0.00019898,2]
[359961123,1746450640501,-450.0,0.00019898,2]
[359961124,1746450640511,-450.0,0.00019898,2]
[359961125,1746450640520,-500.0,0.00019898,2]
[359961126,1746450640530,-478.33277528,0.00019898,2]
[359961127,1746450640540,-479.72679693,0.00019898,2]
[359961128,1746450640549,-450.0,0.00019898,2]
[359961129,1746450640559,-450.0,0.00019898,2]
[359961130,1746450640569,-1000.0,0.00019898,2]
[359961131,1746450640578,-450.0,0.00019898,2]
[359961132,1746450640588,-450.0,0.00019898,2]
[359961133,1746450640597,-450.0,0.00019898,2]
[359961134,1746450640607,-450.0,0.00019898,2]
[359961135,1746450640617,-513.30149544,0.00019898,2]
[359961136,1746450640626,-450.0,0.00019898,2]
[359961137,1746450640636,-522.49919622,0.00019898,2]
[359961138,1746450640646,-450.0,0.00019898,2]
[359961139,1746450640655,-450.0,0.00019898,2]
[359961140,1746450640664,-450.0,0.00019898,2]
[359961141,1746450640674,-475.54842737,0.00019898,2]
[359961142,1746450640685,-450.0,0.00019898,2]
[359961143,1746450640694,-450.0,0.00019898,2]
[359961144,1746450640703,-450.0,0.00019898,2]
[359961145,1746450640713,-450.0,0.00019898,2]
[359961146,1746450640722,-450.0,0.00019898,2]
[359961147,1746450640731,-450.0,0.00019898,2]
[359961148,1746450640741,-450.0,0.00019898,2]
[359961149,1746450640750,-560.47449631,0.00019898,2]
[359961150,1746450640760,-450.0,0.00019898,2]
[359961151,1746450640769,-257.48,0.00019898,2]
[359961152,1746450640778,-450.0,0.00019898,2]
[359961153,1746450640787,-450.0,0.00019898,2]
[359961154,1746450640796,-450.0,0.00019898,2]
[359961155,1746450640806,-450.0,0.00019898,2]
[359961156,1746450640816,-450.0,0.00019898,2]
[359961157,1746450640825,-450.0,0.00019898,2]
[359961158,1746450640834,-450.0,0.00019898,2]
[359961159,1746450640844,-368.9861777,0.00019898,2]
[359961160,1746450640853,-234.16248088,0.00019898,2]
[359961161,1746450640863,-450.0,0.00019898,2]
[359961162,1746450640872,-450.0,0.00019898,2]
[359961163,1746450640882,-450.0,0.00019898,2]
[359961164,1746450641009,-450.0,0.00019898,2]
[359961165,1746450641020,-450.0,0.00019898,2]
[359961166,1746450641029,-450.0,0.00019898,2]
[359961167,1746450641039,-450.0,0.00019898,2]
[359961168,1746450641048,-434.68452417,0.00019898,2]
[359961169,1746450641058,-519.249999,0.00019898,2]
[359961170,1746450641068,-450.0,0.00019898,2]
[359961171,1746450641077,-450.0,0.00019898,2]
[359961172,1746450641085,-450.0,0.00019898,2]
[359961173,1746450641094,-450.0,0.00019898,2]
[359961174,1746450641104,-450.0,0.00019898,2]
[359961175,1746450641113,-450.0,0.00019898,2]
[359961176,1746450641122,-450.0,0.00019898,2]
[359961177,1746450641131,-450.0,0.00019898,2]
[359961178,1746450641140,-450.0,0.00019898,2]
[359961179,1746450641150,-450.0,0.00019898,2]
[359961180,1746450641159,-450.0,0.00019898,2]
[359961181,1746450641168,-450.0,0.00019898,2]
[359961182,1746450641178,-450.0,0.00019898,2]
[359961183,1746450641187,-450.0,0.00019898,2]
[359961184,1746450641196,-589.22490729,0.00019898,2]
[359961185,1746450641206,-450.0,0.00019898,2]
[359961186,1746450641215,-450.0,0.00019898,2]
[359961187,1746450641224,-450.0,0.00019898,2]
[359961188,1746450641233,-450.0,0.00019898,2]
[359961189,1746450641246,-2490.55,0.00019898,2]
[359961190,1746450641256,-450.0,0.00019898,2]
[359961191,1746450641265,-450.0,0.00019898,2]
[359961192,1746450641274,-450.0,0.00019898,2]
[359961193,1746450641284,-450.0,0.00019898,2]
[359961194,1746450641293,-450.0,0.00019898,2]
[359961195,1746450641303,-450.0,0.00019898,2]
[359961196,1746450641313,-450.0,0.00019898,2]
[359961197,1746450641322,-450.0,0.00019898,2]
[359961198,1746450641331,-450.0,0.00019898,2]
[359961199,1746450641341,-450.0,0.00019898,2]
[359961200,1746450641351,-32989.82,0.00019898,2]
[359961201,1746450641361,-450.0,0.00019898,2]
[359961202,1746450641371,-450.0,0.00019898,2]
[359961203,1746450641381,-587.14020952,0.00019898,2]
[359961204,1746450641391,-450.0,0.00019898,2]
[359961205,1746450641401,-450.0,0.00019898,2]
[359961206,1746450641411,-450.0,0.00019898,2]
[359961207,1746450641420,-450.0,0.00019898,2]
[359961208,1746450641433,-450.0,0.00019898,2]
[359961209,1746450641442,-450.0,0.00019898,2]
[359961210,1746450641452,-450.0,0.00019898,2]
[359961211,1746450641462,-450.0,0.00019898,2]
[359961212,1746450641473,-450.0,0.00019898,2]
[359961213,1746450641482,-450.0,0.00019898,2]
[359961214,1746450641492,-450.0,0.00019898,2]
[359961215,1746450641502,-450.0,0.00019898,2]
[359961216,1746450641513,-450.0,0.00019898,2]
[359961217,1746450641523,-487.35219135,0.00019898,2]
[359961218,1746450641532,-450.0,0.00019898,2]
[359961219,1746450641542,-450.0,0.00019898,2]
[359961220,1746450641551,-313.16950704,0.00019898,2]
[359961221,1746450641560,-450.0,0.00019898,2]
[359961222,1746450641569,-464.32526984,0.00019898,2]
[359961223,1746450641579,-450.0,0.00019898,2]
[359961224,1746450641588,-450.0,0.00019898,2]
[359961225,1746450641598,-696.84,0.00019898,2]
[359961226,1746450641607,-450.0,0.00019898,2]
[359961227,1746450641616,-450.0,0.00019898,2]
[359961228,1746450641625,-500.0,0.00019898,2]
[359961229,1746450641635,-450.0,0.00019898,2]
[359961230,1746450641644,-450.0,0.00019898,2]
[359961231,1746450641653,-450.0,0.00019898,2]
[359961232,1746450641662,-450.0,0.00019898,2]
[359961233,1746450641671,-450.0,0.00019898,2]
[359961234,1746450641682,-450.0,0.00019898,2]
[359961235,1746450641691,-450.0,0.00019898,2]
[359961236,1746450641700,-450.0,0.00019898,2]
[359961237,1746450641710,-398.02,0.00019898,2]
[359961238,1746450641719,-450.0,0.00019898,2]
[359961239,1746450641729,-450.0,0.00019898,2]
[359961240,1746450641738,-450.0,0.00019898,2]
[359961241,1746450641747,-450.0,0.00019898,2]
[359961242,1746450641757,-450.0,0.00019898,2]
[359961243,1746450641766,-450.0,0.00019898,2]
[359961244,1746450641775,-450.0,0.00019898,2]
[359961245,1746450641784,-450.0,0.00019898,2]
[359961246,1746450641793,-450.0,0.00019898,2]
[359961247,1746450641802,-450.0,0.00019898,2]
[359961248,1746450641811,-450.0,0.00019898,2]
[359961249,1746450641821,-450.0,0.00019898,2]
[359961250,1746450641830,-450.0,0.00019898,2]
[359961251,1746450641839,-450.0,0.00019898,2]
[359961252,1746450641848,-450.0,0.00019898,2]
[359961253,1746450641858,-450.0,0.00019898,2]
[359961254,1746450641868,-450.0,0.00019898,2]
[359961255,1746450641877,-450.0,0.00019898,2]
[359961256,1746450641887,-450.0,0.00019898,2]
[359961257,1746450641896,-450.0,0.00019898,2]
[359961258,1746450641905,-450.0,0.00019898,2]
[359961259,1746450641914,-293.557934,0.00019898,2]
[359961260,1746450641924,-450.0,0.00019898,2]
[359961261,1746450641934,-450.0,0.00019898,2]
[359961262,1746450641944,-450.0,0.00019898,2]
[359961263,1746450641953,-450.0,0.00019898,2]
[359961264,1746450641963,-621.37,0.00019898,2]
[359961265,1746450641972,-450.0,0.00019898,2]
[359961266,1746450641982,-450.0,0.00019898,2]
[359961267,1746450641991,-450.0,0.00019898,2]
[359961268,1746450641999,-450.0,0.00019898,2]
[359961269,1746450642009,-450.0,0.00019898,2]
[359961270,1746450642018,-500.0,0.00019898,2]
[359961271,1746450642027,-450.0,0.00019898,2]
[359961272,1746450642037,-450.0,0.00019898,2]
[359961273,1746450642048,-488.93,0.00019898,2]
[359961274,1746450642058,-450.0,0.00019898,2]
[359961275,1746450642067,-450.0,0.00019898,2]
[359961276,1746450642076,-450.0,0.00019898,2]
[359961277,1746450642085,-450.0,0.00019898,2]
[359961278,1746450642094,-450.0,0.00019898,2]
[359961279,1746450642103,-450.0,0.00019898,2]
[359961280,1746450642112,-450.0,0.00019898,2]
[359961281,1746450642121,-1307.11,0.00019898,2]
[359961282,1746450642130,-500.0,0.00019898,2]
[359961283,1746450642140,-450.0,0.00019898,2]
[359961284,1746450642150,-450.0,0.00019898,2]
[359961285,1746450642159,-450.0,0.00019898,2]
[359961286,1746450642168,-450.0,0.00019898,2]
[359961287,1746450642177,-450.0,0.00019898,2]
[359961288,1746450642187,-450.0,0.00019898,2]
[359961289,1746450642196,-450.0,0.00019898,2]
[359961290,1746450642205,-623.35,0.00019898,2]
[359961291,1746450642214,-450.0,0.00019898,2]
[359961292,1746450642223,-450.0,0.00019898,2]
[359961293,1746450642232,-450.0,0.00019898,2]
[359961294,1746450642241,-450.0,0.00019898,2]
[359961295,1746450642250,-643.96,0.00019898,2]
[359961296,1746450642259,-504.42,0.00019898,2]
[359961297,1746450642268,-450.0,0.00019898,2]
[359961298,1746450642277,-450.0,0.00019898,2]
[359961299,1746450642287,-450.0,0.00019898,2]
[359961300,1746450642298,-949.82,0.00019898,2]
[359961301,1746450642307,-450.0,0.00019898,2]
[359961302,1746450642317,-450.0,0.00019898,2]
[359961303,1746450642326,-450.0,0.00019898,2]
[359961304,1746450642335,-3501.62,0.00019898,2]
[359961305,1746450642343,-450.0,0.00019898,2]
[359961306,1746450642352,-495.76,0.00019898,2]
[359961307,1746450642361,-450.0,0.00019898,2]
[359961308,1746450642370,-450.0,0.00019898,2]
[359961309,1746450642379,-450.0,0.00019898,2]
[359961311,1746450642388,-541.84,0.00019898,2]
[359961312,1746450642397,-450.0,0.00019898,2]
[359961313,1746450642406,-450.0,0.00019898,2]
[359961314,1746450642415,-450.0,0.00019898,2]
[359961315,1746450642424,-450.0,0.00019898,2]
[359961316,1746450642436,-450.0,0.00019898,2]
[359961317,1746450642445,-716.34,0.00019898,2]
[359961318,1746450642455,-592.41,0.00019898,2]
[359961319,1746450642465,-450.0,0.00019898,2]
[359961320,1746450642475,-477.86865227,0.00019898,2]
[359961321,1746450642484,-450.0,0.00019898,2]
[359961322,1746450642493,-186.108635,0.00019898,2]
[359961323,1746450642502,-450.0,0.00019898,2]
[359961324,1746450642511,-450.0,0.00019898,2]
[359961325,1746450642521,-578.46,0.00019898,2]
[359961327,1746450642531,-469.91,0.00019898,2]
[359961328,1746450642540,-450.0,0.00019898,2]
[359961329,1746450642549,-852.67,0.00019898,2]
[359961330,1746450642558,-450.0,0.00019898,2]
[359961331,1746450642567,-450.0,0.00019898,2]
[359961332,1746450642576,-450.0,0.00019898,2]
[359961333,1746450642585,-450.0,0.00019898,2]
[359961334,1746450642594,-450.0,0.00019898,2]
[359961335,1746450642604,-450.0,0.00019898,2]
[359961336,1746450642613,-20927.38,0.00019898,2]
[359961337,1746450642622,-7141.666666,0.00019898,2]
[359961338,1746450642631,-450.0,0.00019898,2]
[359961339,1746450642640,-450.0,0.00019898,2]
[359961340,1746450642649,-450.0,0.00019898,2]
[359961341,1746450642658,-450.0,0.00019898,2]
[359961342,1746450642667,-153.36087,0.00019898,2]
[359961343,1746450642676,-450.0,0.00019898,2]
[359961344,1746450642686,-450.0,0.00019898,2]
[359961345,1746450642696,-450.0,0.00019898,2]
[359961346,1746450642705,-1897.42,0.00019898,2]
[359961347,1746450642714,-450.0,0.00019898,2]
[359961348,1746450642724,-450.0,0.00019898,2]
[359961349,1746450642733,-450.0,0.00019898,2]
[359961350,1746450642742,-450.0,0.00019898,2]
[359961351,1746450642751,-450.0,0.00019898,2]
[359961352,1746450642760,-450.0,0.00019898,2]
[359961353,1746450642769,-450.0,0.00019898,2]
[359961354,1746450642778,-450.0,0.00019898,2]
[359961355,1746450642787,-450.0,0.00019898,2]
[359961356,1746450642796,-450.0,0.00019899,2]
[359961357,1746450642805,-450.0,0.00019899,2]
[359961358,1746450642814,-450.0,0.00019899,2]
[359961359,1746450642823,-450.0,0.00019899,2]
[359961360,1746450642832,-375.20203429,0.00019899,2]
[359961361,1746450642841,-450.0,0.00019899,2]
[359961362,1746450642850,-450.0,0.00019899,2]
[359961363,1746450642859,-450.0,0.00019899,2]
[359961364,1746450642868,-450.0,0.00019899,2]
[359961365,1746450642877,-471.78928373,0.00019899,2]
[359961366,1746450642886,-450.0,0.00019899,2]
[359961367,1746450642895,-450.0,0.00019899,2]
[359961368,1746450642904,-450.0,0.00019899,2]
[359961369,1746450642913,-450.0,0.00019899,2]
[359961370,1746450642922,-450.0,0.00019899,2]
[359961371,1746450642931,-450.0,0.00019899,2]
[359961372,1746450642940,-450.0,0.00019899,2]
[359961373,1746450642949,-451.18985323,0.00019899,2]
[359961374,1746450642958,-450.0,0.00019899,2]
[359961375,1746450642967,-450.0,0.00019899,2]
[359961376,1746450642976,-450.0,0.00019899,2]
[359961377,1746450642985,-450.0,0.00019899,2]
[359961378,1746450642994,-460.50052423,0.00019899,2]
[359961379,1746450643003,-458.8241856,0.00019899,2]
[359961380,1746450643012,-522.13552727,0.00019899,2]
[359961381,1746450643020,-450.0,0.00019899,2]
[359961382,1746450643030,-450.0,0.00019899,2]
[359961383,1746450643039,-237.82453394,0.00019899,2]
[359961384,1746450643049,-470.90806595,0.00019899,2]
[359961386,1746450643058,-527.02644517,0.00019899,2]
[359961388,1746450643067,-450.0,0.00019899,2]
[359961390,1746450643077,-324.07261881,0.00019899,2]
[359961392,1746450643086,-450.0,0.00019899,2]
[359961394,1746450643095,-500.0,0.00019899,2]
[359961396,1746450643104,-462.70920917,0.00019899,2]
[359961398,1746450643114,-450.0,0.00019899,2]
[359961400,1746450643123,-450.0,0.00019899,2]
[359961402,1746450643132,-455.55517642,0.00019899,2]
[359961405,1746450643141,-469.12978993,0.00019899,2]
[359961408,1746450643150,-513.91255045,0.00019899,2]
[359961410,1746450643159,-481.57526706,0.00019899,2]
[359961412,1746450643169,-450.0,0.00019899,2]
[359961414,1746450643178,-450.0,0.00019899,2]
[359961416,1746450643187,-450.0,0.00019899,2]
[359961418,1746450643196,-500.0,0.00019899,2]
[359961420,1746450643205,-450.0,0.00019899,2]
[359961422,1746450643214,-450.0,0.00019899,2]
[359961424,1746450643223,-450.0,0.00019899,2]
[359961426,1746450643233,-450.0,0.00019899,2]
[359961428,1746450643242,-465.80186864,0.00019899,2]
[359961429,1746450643251,-474.4431861,0.00019899,2]
[359961430,1746450643260,-452.60256211,0.00019899,2]
[359961431,1746450643269,-450.0,0.00019899,2]
[359961432,1746450643278,-554.35272544,0.00019899,2]
[359961433,1746450643287,-479.37705776,0.00019899,2]
[359961434,1746450643296,-524.67275617,0.00019899,2]
[359961435,1746450643306,-450.0,0.00019899,2]
[359961436,1746450643315,-450.0,0.00019899,2]
[359961437,1746450643324,-515.94296531,0.00019899,2]
[359961438,1746450643334,-450.0,0.00019899,2]
[359961439,1746450643343,-450.0,0.00019899,2]
[359961440,1746450643352,-450.0,0.00019899,2]
[359961441,1746450643361,-474.71038616,0.00019899,2]
[359961442,1746450643370,-450.0,0.00019899,2]
[359961443,1746450643379,-450.0,0.00019899,2]
[359961444,1746450643388,-523.74689952,0.00019899,2]
[359961445,1746450643397,-450.0,0.00019899,2]
[359961446,1746450643406,-450.0,0.00019899,2]
[359961447,1746450643415,-450.0,0.00019899,2]
[359961448,1746450643424,-450.0,0.00019899,2]
[359961449,1746450643436,-524.73403359,0.00019899,2]
[359961450,1746450643445,-453.06027563,0.00019899,2]
[359961451,1746450643455,-481.03429624,0.00019899,2]
[359961452,1746450643464,-450.0,0.00019899,2]
[359961453,1746450643474,-450.0,0.00019899,2]
[359961454,1746450643483,-450.0,0.00019899,2]
[359961455,1746450643493,-450.0,0.00019899,2]
[359961456,1746450643502,-450.0,0.00019899,2]
[359961457,1746450643513,-463.52548413,0.00019899,2]
[359961458,1746450643522,-450.0,0.00019899,2]
[359961459,1746450643531,-300.0,0.00019899,2]
[359961460,1746450643541,-453.63209333,0.00019899,2]
[359961461,1746450643551,-450.0,0.00019899,2]
[359961462,1746450643560,-450.0,0.00019899,2]
[359961463,1746450643569,-453.76695572,0.00019899,2]
[359961464,1746450643579,-450.0,0.00019899,2]
[359961465,1746450643587,-453.94957557,0.00019899,2]
[359961466,1746450643596,-450.0,0.00019899,2]
[359961467,1746450643606,-459.64622207,0.00019899,2]
[359961468,1746450643615,-545.94271448,0.00019899,2]
[359961469,1746450643624,-528.20403667,0.00019899,2]
[359961470,1746450643633,-555.79374362,0.00019899,2]
[359961471,1746450643643,-450.0,0.00019899,2]
[359961472,1746450643652,-452.85885943,0.00019899,2]
[359961473,1746450643661,-450.0,0.00019899,2]
[359961474,1746450643671,-450.0,0.00019899,2]
[359961475,1746450643680,-450.0,0.00019899,2]
[359961476,1746450643689,-450.0,0.00019899,2]
[359961477,1746450643698,-524.67325764,0.00019899,2]
[359961478,1746450643707,-450.0,0.00019899,2]
[359961479,1746450643716,-450.0,0.00019899,2]
[359961480,1746450643725,-450.0,0.00019899,2]
[359961481,1746450643735,-467.4611304,0.00019899,2]
[359961482,1746450643744,-450.0,0.00019899,2]
[359961483,1746450643754,-464.57904137,0.00019899,2]
[359961484,1746450643764,-450.0,0.00019899,2]
[359961485,1746450643773,-469.60296193,0.00019899,2]
[359961486,1746450643783,-450.0,0.00019899,2]
[359961487,1746450643792,-455.91609395,0.00019899,2]
[359961488,1746450643800,-464.57555561,0.00019899,2]
[359961489,1746450643928,-450.0,0.00019899,2]